bitfinex-derivatives/quotes_SOLF0:USTF0_20250110
["timestamp","ask_amount","ask_price","bid_price","bid_amount"]
[1736532149916,34.23055491,191.07,190.98,5.56189639]
[1736532150115,40.63055491,191.1,190.98,5.56189639]
[1736532150810,40.63055491,191.1,190.99,5.56189639]
[1736532151017,34.23055491,191.07,190.99,5.56189639]
[1736532151620,34.23055491,191.07,190.95,6.75805651]
[1736532151819,34.23055491,191.07,190.94,34.23055491]
[1736532152114,34.23055491,191.07,190.93,1.5313]
[1736532152620,34.23055491,191.07,190.94,8.1758934]
[1736532153014,6.4,191.1,190.94,39.78764831]
[1736532153015,40.63055491,191.1,190.94,39.78764831]
[1736532153426,40.63055491,191.1,190.95,5.5570934]
[1736532153627,34.23055491,191.07,190.95,5.5570934]
[1736532154326,40.63055491,191.1,190.96,5.5570934]
[1736532154516,40.63055491,191.1,190.99,2.6183]
[1736532154729,34.23055491,191.1,190.96,5.5570934]
[1736532155121,34.23055491,191.1,191.0,5.5570934]
[1736532155935,34.23055491,191.1,190.95,14.78]
[1736532156421,34.23055491,191.1,190.95,17.3987]
[1736532156632,34.23055491,191.1,190.95,14.78]
[1736532156849,34.23055491,191.1,190.96,5.55897374]
[1736532157029,34.23055491,191.1,190.98,2.6184]
[1736532157241,34.23055491,191.14,190.97,34.23055491]
[1736532157426,6.32,191.13,190.97,34.23055491]
[1736532157625,34.23055491,191.11,190.98,5.55897374]
[1736532158019,34.23055491,191.11,190.99,2.6182]
[1736532158215,34.23055491,191.11,190.98,5.55897374]
[1736532158425,34.23055491,191.11,190.99,5.55897374]
[1736532158619,29.01755491,191.11,191.0,5.55897374]
[1736532159323,29.01755491,191.11,190.99,2.6182]
[1736532160120,29.01755491,191.11,191.01,2.618]
[1736532160324,29.01755491,191.11,190.96,4.18]
[1736532160623,29.01755491,191.11,190.98,2.6183]
[1736532160845,34.23055491,191.08,190.96,4.18]
[1736532161226,34.23055491,191.08,190.97,2.6185]
[1736532161828,34.23055491,191.11,190.99,2.6182]
[1736532162021,34.23055491,191.11,190.98,5.55167634]
[1736532162227,34.23055491,191.11,190.99,3.1558]
[1736532162820,29.01755491,191.11,190.99,3.1558]
[1736532163028,29.01755491,191.11,190.99,3.4358]
[1736532163422,29.01755491,191.11,191.02,2.6178]
[1736532163628,40.49055491,191.14,191.0,5.55398054]
[1736532164135,40.49055491,191.14,191.01,5.55398054]
[1736532164826,34.23055491,191.14,191.04,2.6175]
[1736532165028,34.23055491,191.14,191.02,5.55398054]
[1736532165029,85.86,191.15,191.02,5.55398054]
[1736532165236,85.86,191.15,191.03,1.663]
[1736532165630,40.47055491,191.17,191.03,1.663]
[1736532165832,6.24,191.17,191.07,2.6171]
[1736532166131,34.23055491,191.18,191.07,2.6171]
[1736532166329,40.45055491,191.18,191.07,2.6171]
[1736532166928,40.45055491,191.18,191.08,2.617]
[1736532167735,40.45055491,191.18,191.07,2.6171]
[1736532168032,15.74,191.36,191.08,34.23055491]
[1736532168233,34.23055491,191.28,191.18,2.6156]
[1736532168427,34.23055491,191.28,191.12,6.75805651]
[1736532168830,34.23055491,191.28,191.14,34.23055491]
[1736532169035,34.23055491,191.28,191.16,6.75805651]
[1736532169434,21.02613983,191.27,191.16,6.75805651]
[1736532169626,21.02613983,191.24,191.17,6.04607305]
[1736532170233,6.22,191.23,191.17,6.04607305]
[1736532170433,6.22,191.23,191.13,8.39235651]
[1736532171335,6.22,191.23,191.13,12.57235651]
[1736532171538,6.22,191.23,191.16,2.6158]
[1736532171835,6.22,191.23,191.15,6.75805651]
[1736532172438,3.6,191.24,191.15,6.75805651]
[1736532172439,3.6,191.24,191.17,2.6157]
[1736532172632,3.6,191.24,191.17,9.37375651]
[1736532172829,3.6,191.24,191.17,6.75805651]
[1736532173026,3.6,191.24,191.18,2.6156]
[1736532173239,3.6,191.24,191.18,12.73852163]
[1736532173640,3.6,191.24,191.18,27.03222606]
[1736532174138,3.6,191.24,191.19,2.6154]
[1736532174540,3.6,191.24,191.19,39.22760768]
[1736532174733,3.6,191.24,191.19,59.50177723]
[1736532175043,3.6,191.24,191.19,29.64762606]
[1736532175235,85.78,191.46,191.2,21.02613983]
[1736532175439,21.02613983,191.37,191.2,24.18963983]
[1736532175642,6.16,191.36,191.23,81.09667819]
[1736532176040,27.18613983,191.37,191.23,81.09667819]
[1736532176237,27.18613983,191.37,191.23,207.98149149]
[1736532176441,21.02613983,191.37,191.23,289.07816969]
[1736532176646,85.78,191.46,191.23,289.07816969]
[1736532176647,21.02613983,191.34,191.23,289.07816969]
[1736532176862,27.18613983,191.34,191.23,289.07816969]
[1736532177039,21.02613983,191.31,191.23,162.19335639]
[1736532178041,21.02613983,191.31,191.21,81.09667819]
[1736532179646,6.12,191.32,191.2,1.595]
[1736532179943,21.02613983,191.31,191.2,1.595]
[1736532180340,85.78,191.46,191.24,2.6148]
[1736532180535,21.02613983,191.37,191.21,142.66666618]
[1736532180733,21.02613983,191.37,191.2,22.62113983]
[1736532180734,6.14,191.36,191.24,81.09667819]
[1736532180939,6.14,191.36,191.25,1.5763]
[1736532181651,6.14,191.36,191.25,82.67297819]
[1736532181940,27.16613983,191.4,191.26,21.02613983]
[1736532182141,27.16613983,191.4,191.3,2.614]
[1736532182445,6.14,191.4,191.3,2.614]
[1736532182645,6.14,191.4,191.31,2.6139]
[1736532182852,6.14,191.4,191.29,81.09667819]
[1736532183147,106.80613983,191.46,191.35,2.6133]
[1736532183344,106.80613983,191.46,191.3,162.19335639]
[1736532183345,106.80613983,191.46,191.3,163.79695639]
[1736532183845,106.80613983,191.46,191.33,162.19335639]
[1736532184248,21.02613983,191.43,191.33,179.22335639]
[1736532184443,21.02613983,191.4,191.36,162.19335639]
[1736532184846,85.78,191.46,191.36,21.40406157]
[1736532184847,21.02613983,191.37,191.36,21.40406157]
[1736532185046,27.12613983,191.37,191.33,17.03]
[1736532185243,21.02613983,191.34,191.33,13.43]
[1736532185440,21.02613983,191.34,191.33,2.38201968]
[1736532186739,42.05227966,191.34,191.14,22.63532089]
[1736532186940,21.02613983,191.24,191.14,20.97112089]
[1736532187144,21.02613983,191.21,191.14,1.5002]
[1736532187348,6.1,191.23,191.15,2.616]
[1736532187648,6.1,191.23,191.14,22.52633983]
[1736532187947,6.1,191.23,191.14,36.54633983]
[1736532188345,6.1,191.23,191.14,36.81633983]
[1736532188545,6.1,191.23,191.17,2.6157]
[1736532188740,6.1,191.23,191.14,36.81633983]
[1736532188946,6.1,191.23,191.14,15.7902]
[1736532189346,6.1,191.23,191.14,14.29]
[1736532189556,21.02613983,191.21,191.14,14.29]
[1736532189956,21.02613983,191.18,191.14,14.29]
[1736532190353,21.02613983,191.15,191.14,14.02]
[1736532190956,21.02613983,191.15,191.02,174.72802265]
[1736532191159,6.1,191.14,191.02,174.72802265]
[1736532191552,6.1,191.14,191.02,7.6174]
[1736532191959,21.02613983,191.12,191.02,7.6174]
[1736532192265,6.1,191.14,191.02,25.2474]
[1736532192561,21.02613983,191.12,191.02,22.08]
[1736532192751,21.02613983,191.09,191.02,22.08]
[1736532192953,21.02613983,191.06,191.02,22.08]
[1736532193150,6.08,191.05,191.02,22.08]
[1736532193757,21.02613983,191.09,191.02,22.08]
[1736532193966,21.02613983,191.11,191.02,22.08]
[1736532194263,21.02613983,191.08,191.02,22.08]
[1736532196458,27.10613983,191.11,191.02,22.08]
[1736532197472,21.02613983,191.14,191.02,22.08]
[1736532197691,15.68,191.31,191.02,22.08]
[1736532197692,477.0,191.73,191.03,21.02613983]
[1736532197869,21.02613983,191.28,191.13,21.02613983]
[1736532198171,21.02613983,191.34,191.2,2.6154]
[1736532198364,21.02613983,191.34,191.17,4.67]
[1736532198562,21.02613983,191.34,191.19,21.02613983]
[1736532198761,27.18613983,191.37,191.23,2.615]
[1736532198970,27.18613983,191.37,191.22,21.02613983]
[1736532199262,34.13040156,191.38,191.22,34.13040156]
[1736532200963,34.13040156,191.38,191.22,36.74540156]
[1736532201165,34.13040156,191.38,191.22,34.13040156]
[1736532201471,6.14,191.37,191.27,2.6144]
[1736532201667,6.14,191.37,191.19,34.13040156]
[1736532201974,6.14,191.37,191.24,2.6148]
[1736532202164,34.13040156,191.38,191.22,34.13040156]
[1736532202481,34.13040156,191.41,191.25,34.13040156]
[1736532202774,34.13040156,191.41,191.27,2.6143]
[1736532203262,34.13040156,191.41,191.28,1.5727]
[1736532203474,34.13040156,191.41,191.28,6.94839152]
[1736532203767,34.13040156,191.41,191.28,12.78949152]
[1736532204167,34.13040156,191.38,191.28,4.7995]
[1736532204666,34.13040156,191.35,191.28,4.7995]
[1736532204868,34.13040156,191.32,191.19,2.6154]
[1736532205064,34.13040156,191.29,191.2,4.6899]
[1736532205267,34.13040156,191.29,191.2,10.17541752]
[1736532205467,34.13040156,191.26,191.2,5.48551752]
[1736532205670,6.12,191.25,191.2,5.48551752]
[1736532206466,34.13040156,191.23,191.13,3.1218]
[1736532206671,34.13040156,191.19,191.13,3.1218]
[1736532207567,34.13040156,191.19,191.07,1.5681]
[1736532207964,34.13040156,191.22,191.07,35.69850156]
[1736532208163,6.12,191.23,191.08,26.95689492]
[1736532208667,6.12,191.23,191.09,14.29712385]
[1736532209073,6.12,191.23,191.12,2.6165]
[1736532209580,6.12,191.23,191.1,5.49889379]
[1736532209777,6.12,191.23,191.15,2.6161]
[1736532210169,6.12,191.23,191.13,5.39137898]
[1736532210377,6.12,191.23,191.15,17.63]
[1736532210772,34.13040156,191.22,191.15,17.63]
[1736532212871,34.13040156,191.19,191.15,17.63]
[1736532213070,34.13040156,191.16,191.15,17.63]
[1736532213271,34.13040156,191.16,191.05,3.2095]
[1736532213572,34.13040156,191.08,191.01,83.27787891]
[1736532213774,6.08,191.07,191.0,53.65684072]
[1736532214678,6.08,191.07,191.02,4.45]
[1736532215872,34.13040156,191.05,191.02,4.45]
[1736532216589,6.08,191.07,191.02,4.18]
[1736532217880,34.13040156,191.03,191.02,4.18]
[1736532218082,34.13040156,191.03,191.0,0.27]
[1736532219784,6.08,191.07,191.0,0.27]
[1736532219980,6.02,191.06,191.0,0.27]
[1736532220280,34.13040156,191.05,191.0,0.27]
[1736532221775,34.13040156,191.11,191.0,0.27]
[1736532222082,6.02,191.1,191.01,2.618]
[1736532222292,6.02,191.1,191.01,4.2097]
[1736532222478,34.13040156,191.08,191.01,1.5917]
[1736532222676,34.13040156,191.05,191.0,0.27]
[1736532222881,34.13040156,191.08,191.0,0.27]
[1736532223586,21.07433044,191.05,191.0,0.27]
[1736532225089,21.07433044,191.1,191.0,0.27]
[1736532225292,6.0,191.09,191.0,0.27]
[1736532225587,6.0,191.09,191.0,2.8881]
[1736532225793,21.07433044,191.07,191.0,0.27]
[1736532227095,5.98,191.06,191.0,0.27]
[1736532227697,5.98,191.06,191.0,2.8881]
[1736532227885,5.98,191.06,191.0,0.27]
[1736532231594,21.07433044,191.05,191.0,0.27]
[1736532232894,5.98,191.06,191.0,0.27]
[1736532233703,21.07433044,191.12,191.0,0.27]
[1736532233906,5.96,191.11,191.05,2.6174]
[1736532234190,5.96,191.11,191.0,0.27]
[1736532234593,5.96,191.11,191.01,5.50392773]
[1736532234998,5.96,191.11,191.02,8.12172773]
[1736532235396,5.96,191.11,191.02,25.69476892]
[1736532235895,5.96,191.11,191.0,0.27]
[1736532236296,5.96,191.11,191.01,2.6179]
[1736532236495,21.07433044,191.09,191.0,0.27]
[1736532236902,5.96,191.11,191.0,0.27]
[1736532237497,5.92,191.1,191.0,0.27]
[1736532237900,5.92,191.1,191.02,2.6178]
[1736532238199,5.92,191.1,191.01,5.50668963]
[1736532238589,5.92,191.1,191.02,2.6178]
[1736532238787,5.92,191.1,191.0,0.27]
[1736532239001,5.92,191.1,191.02,2.6177]
[1736532239202,5.92,191.1,191.0,0.27]
[1736532239395,5.92,191.1,191.01,5.5071704]
[1736532240199,5.9,191.12,191.02,5.5071704]
[1736532240400,21.07433044,191.15,191.05,2.6173]
[1736532240599,21.07433044,191.15,191.03,1.5081]
[1736532240793,5.9,191.16,191.03,1.5081]
[1736532241007,5.9,191.16,191.1,2.6167]
[1736532241392,0.68,191.16,191.1,2.6167]
[1736532241596,0.68,191.16,191.09,2.6169]
[1736532242198,0.68,191.16,191.08,1.6438]
[1736532242498,0.68,191.16,191.1,47.04484077]
[1736532242700,21.07433044,191.14,191.1,47.04484077]
[1736532242902,21.07433044,191.11,191.09,4.18]
[1736532243103,21.07433044,191.11,191.05,80.65997891]
[1736532243298,21.07433044,191.07,191.05,54.29418738]
[1736532243505,5.88,191.06,191.05,54.29418738]
[1736532243897,0.637,191.06,191.05,54.29418738]
[1736532244104,0.637,191.06,191.0,1.9138]
[1736532244301,0.637,191.06,191.03,0.76]
[1736532244515,21.07433044,191.04,191.0,0.27]
[1736532244711,15.83133044,191.04,191.0,0.27]
[1736532244906,0.637,191.06,191.0,0.27]
[1736532245509,0.637,191.06,190.97,2.6185]
[1736532246015,36.81433044,191.2,190.96,1.5081]
[1736532246016,21.07433044,191.04,190.96,4.1268]
[1736532246206,26.93433044,191.04,190.98,5.51173649]
[1736532246521,26.93433044,191.04,190.96,4.1268]
[1736532246707,5.86,191.04,190.96,1.5081]
[1736532247008,5.86,191.09,190.96,1.5081]
[1736532247213,5.86,191.09,190.97,14.32956365]
[1736532247407,5.86,191.09,191.01,2.6179]
[1736532247623,15.83133044,191.1,190.97,14.32956365]
[1736532247806,5.86,191.11,190.96,22.58243044]
[1736532248008,0.617,191.11,190.96,22.58243044]
[1736532248414,0.617,191.11,191.01,2.6179]
[1736532248611,0.617,191.11,190.96,22.58243044]
[1736532249012,21.07433044,191.13,191.05,2.6174]
[1736532249210,5.86,191.12,190.97,14.33006417]
[1736532249411,26.93433044,191.12,190.97,14.33006417]
[1736532249610,26.93433044,191.12,191.04,2.6176]
[1736532249814,26.93433044,191.12,190.98,14.33006417]
[1736532250003,21.07433044,191.09,190.99,8.81850103]
[1736532250409,21.07433044,191.06,190.97,6.81148587]
[1736532251314,21.07433044,191.03,190.97,6.81148587]
[1736532251519,5.84,191.02,190.91,3.2759]
[1736532251707,21.07433044,191.0,190.91,3.2759]
[1736532252111,21.07433044,191.0,190.92,17.58095877]
[1736532252512,21.07433044,191.0,190.92,12.04485812]
[1736532252743,21.07433044,190.97,190.92,12.04485812]
[1736532252909,5.84,191.02,190.92,12.04485812]
[1736532252910,21.07433044,190.94,190.92,12.04485812]
[1736532253110,21.07433044,190.94,190.9,6.81148587]
[1736532253504,5.84,190.93,190.9,6.81148587]
[1736532254113,5.84,190.93,190.84,9.90358587]
[1736532254620,5.84,190.93,190.84,8.36948587]
[1736532255212,5.84,190.93,190.85,5.43400184]
[1736532255611,0.39,190.92,190.85,5.43400184]
[1736532256006,0.39,190.92,190.86,10.73309233]
[1736532256214,2.04,190.95,190.86,10.73309233]
[1736532256723,2.04,190.95,190.87,5.43400184]
[1736532256915,2.04,190.95,190.94,2.619]
[1736532257122,26.89433044,191.03,190.91,6.81148587]
[1736532257314,26.89433044,191.03,190.92,1.5722]
[1736532257727,21.07433044,191.07,190.93,6.81148587]
[1736532257935,21.07433044,191.07,190.97,2.6184]
[1736532258122,21.07433044,191.07,190.93,12.24548771]
[1736532258416,21.07433044,191.04,190.94,2.6188]
[1736532258619,21.07433044,191.07,190.93,6.81148587]
[1736532258818,5.82,191.08,190.95,5.32026603]
[1736532259619,21.07433044,191.1,190.98,2.6183]
[1736532259822,21.07433044,191.07,190.95,5.32026603]
[1736532260019,21.07433044,191.04,190.99,5.32026603]
[1736532260224,15.83133044,191.04,190.99,5.32026603]
[1736532260422,15.83133044,191.04,190.92,1.5722]
[1736532260620,26.87433044,191.1,190.92,1.5722]
[1736532260621,21.07433044,191.07,190.92,22.64653044]
[1736532260930,21.07433044,191.07,190.93,14.11095947]
[1736532261120,21.07433044,191.07,190.98,2.6184]
[1736532261421,15.83133044,191.07,190.98,2.6184]
[1736532261616,15.83133044,191.07,190.99,5.4272921]
[1736532262419,10.58833044,191.07,191.0,5.4272921]
[1736532262819,10.58833044,191.07,190.93,1.5505]
[1736532263321,5.34533044,191.07,190.93,1.5505]
[1736532263526,21.07433044,191.04,190.94,14.1039789]
[1736532263717,21.07433044,191.07,190.94,14.1039789]
[1736532264213,15.83133044,191.07,190.94,14.1039789]
[1736532264416,15.83133044,191.07,190.95,14.1039789]
[1736532264619,15.83133044,191.07,190.99,2.6182]
[1736532264827,21.07433044,191.04,190.93,1.5505]
[1736532265417,15.83133044,191.04,190.93,1.5505]
[1736532265626,21.07433044,191.07,190.93,1.5505]
[1736532265924,21.07433044,191.07,190.94,14.10224569]
[1736532266312,26.87433044,191.1,190.98,2.6183]
[1736532266518,21.63133044,191.1,190.95,14.10224569]
[1736532266724,21.07433044,191.1,190.95,14.10224569]
[1736532266938,21.07433044,191.07,190.95,14.10224569]
[1736532267320,21.07433044,191.07,190.96,5.42394065]
[1736532267727,15.83133044,191.07,190.96,5.42394065]
[1736532268131,15.83133044,191.07,190.97,2.6185]
[1736532268327,10.58433044,191.07,190.97,5.42394065]
[1736532268728,5.34133044,191.07,190.98,5.42394065]
[1736532269017,5.34133044,191.07,190.99,5.42394065]
[1736532269433,21.07433044,191.1,190.94,21.07433044]
[1736532269631,26.81433044,191.16,190.97,21.07433044]
[1736532269925,5.74,191.16,191.0,21.07433044]
[1736532270131,5.74,191.16,191.03,21.07433044]
[1736532270329,2.17209495,191.16,191.04,1.6384]
[1736532270522,22.66943044,191.19,191.04,1.6384]
[1736532270725,21.07433044,191.22,191.06,21.07433044]
[1736532271434,21.07433044,191.22,191.07,14.09517793]
[1736532271729,15.83133044,191.22,191.12,2.6164]
[1736532272329,15.83133044,191.22,191.11,2.6166]
[1736532272525,15.83133044,191.22,191.13,5.42122228]
[1736532273236,21.07433044,191.19,191.08,4.2515]
[1736532273831,21.07433044,191.19,191.11,2.6166]
[1736532274336,21.07433044,191.19,191.09,5.47778123]
[1736532274534,21.07433044,191.19,191.1,5.47778123]
[1736532274928,21.07433044,191.16,191.1,5.47778123]
[1736532275531,1.5583,191.18,191.09,2.6168]
[1736532275731,21.07433044,191.2,191.08,1.6345]
[1736532276126,21.07433044,191.2,191.1,2.6167]
[1736532276329,21.07433044,191.2,191.08,1.6345]
[1736532276836,21.07433044,191.2,191.09,2.6168]
[1736532277544,21.07433044,191.2,191.08,1.6345]
[1736532277767,21.07433044,191.16,191.08,1.6345]
[1736532279236,21.07433044,191.13,191.04,1.6384]
[1736532279434,15.83133044,191.13,191.01,3.2305]
[1736532279834,21.07433044,191.1,191.01,3.2305]
[1736532280233,21.07433044,191.1,191.02,5.49570823]
[1736532280739,15.83133044,191.1,191.01,1.6276]
[1736532281041,21.07433044,191.07,190.98,4.1786]
[1736532281231,21.07433044,191.07,190.98,1.5602]
[1736532281542,21.07433044,191.04,190.96,1.5447]
[1736532281735,26.73433044,191.07,190.96,1.5447]
[1736532281931,26.73433044,191.07,190.99,5.49836938]
[1736532282131,21.07433044,191.1,191.01,2.6179]
[1736532282747,15.83133044,191.1,191.02,5.49836938]
[1736532283537,15.83133044,191.1,191.03,5.49836938]
[1736532284036,10.58833044,191.1,191.03,5.49836938]
[1736532284436,10.58833044,191.1,190.96,1.5447]
[1736532284636,21.07433044,191.13,190.97,21.07433044]
[1736532284834,21.07433044,191.13,190.97,35.57979979]
[1736532285034,21.07433044,191.13,191.06,2.6173]
[1736532285235,21.07433044,191.13,190.97,35.57979979]
[1736532285640,21.07433044,191.13,190.98,14.50546935]
[1736532286040,21.07433044,191.13,190.99,14.50546935]
[1736532286937,21.07433044,191.13,191.0,14.50546935]
[1736532287443,21.07433044,191.13,191.01,14.50546935]
[1736532287643,21.07433044,191.13,191.02,1.5941]
[1736532288247,21.07433044,191.13,191.06,2.6172]
[1736532288541,21.07433044,191.13,191.03,5.57902667]
[1736532288946,21.07433044,191.13,191.04,5.57902667]
[1736532289146,5.66,191.15,191.04,5.57902667]
[1736532289647,5.66,191.15,191.05,5.57902667]
[1736532290051,5.66,191.15,191.05,8.19642667]
[1736532290649,5.66,191.15,191.06,8.19632667]
[1736532291243,5.66,191.15,191.07,5.57902667]
[1736532291442,21.07433044,191.16,191.07,5.57902667]
[1736532291647,22.72833044,191.19,191.07,5.57902667]
[1736532291940,22.72833044,191.19,191.02,1.5941]
[1736532291941,22.72833044,191.19,191.08,5.57902667]
[1736532292146,21.07433044,191.16,191.08,5.57902667]
[1736532292948,21.07433044,191.16,191.05,2.6173]
[1736532293547,21.07433044,191.16,191.06,5.57218647]
[1736532293746,1.654,191.19,191.06,5.57218647]
[1736532293951,15.83133044,191.16,191.06,5.57218647]
[1736532294143,22.72833044,191.19,191.07,1.5019]
[1736532294343,22.72833044,191.19,191.07,7.07408647]
[1736532294853,5.66,191.2,191.08,5.57218647]
[1736532295646,21.07433044,191.13,191.02,1.5941]
[1736532295847,15.83133044,191.13,191.02,1.5941]
[1736532296451,15.83133044,191.13,191.03,8.19123468]
[1736532296645,15.83133044,191.13,191.03,5.57363468]
[1736532296849,21.07433044,191.07,191.04,5.57363468]
[1736532297054,5.66,191.09,191.04,5.57363468]
[1736532297247,21.07433044,191.06,190.96,6.81148587]
[1736532297678,26.73433044,191.09,190.95,4.6959]
[1736532297854,26.73433044,191.09,190.96,8.92341833]
[1736532298046,21.49133044,191.09,190.96,8.92341833]
[1736532298743,21.49133044,191.09,191.0,2.618]
[1736532299043,16.24833044,191.09,191.0,2.618]
[1736532300250,11.00533044,191.09,190.95,4.6959]
[1736532301149,21.07433044,191.06,190.96,8.83563931]
[1736532301355,21.07433044,191.03,190.96,8.83563931]
[1736532301557,21.07433044,191.1,190.96,8.83563931]
[1736532301558,13.17312283,191.02,190.96,8.83563931]
[1736532301748,13.17312283,190.99,190.96,8.83563931]
[1736532302345,7.93012283,190.99,190.96,8.05773931]
[1736532302550,7.93012283,190.99,190.9,6.81148587]
[1736532302843,13.17312283,191.01,190.95,2.6188]
[1736532303049,13.17312283,190.98,190.88,8.44428587]
[1736532303354,13.17312283,190.98,190.92,6.81148587]
[1736532303355,15.84471296,190.98,190.92,6.81148587]
[1736532303747,21.08771296,190.95,190.92,6.81148587]
[1736532303952,21.08771296,190.95,190.89,6.81148587]
[1736532304651,15.84471296,190.98,190.89,6.81148587]
[1736532304853,15.84471296,190.98,190.85,8.41908587]
[1736532305158,15.84471296,190.98,190.85,9.43158587]
[1736532305345,15.85171296,190.92,190.85,6.81148587]
[1736532305654,0.417,190.94,190.83,6.81148587]
[1736532305846,15.84471296,190.98,190.83,6.81148587]
[1736532306243,5.66,191.01,190.84,27.09089127]
[1736532306244,21.08771296,191.01,190.84,27.09089127]
[1736532306456,21.08771296,191.01,190.87,21.08771296]
[1736532306652,21.08771296,191.01,190.92,2.6192]
[1736532306852,15.84471296,191.01,190.87,21.08771296]
[1736532307148,26.74771296,191.04,190.88,1.5359]
[1736532307357,26.74771296,191.04,190.88,7.53907831]
[1736532307853,26.74771296,191.04,190.92,2.6191]
[1736532308050,26.74771296,191.04,190.9,21.08771296]
[1736532308253,85.8,191.06,190.91,1.591]
[1736532308459,85.8,191.06,190.91,7.251]
[1736532308650,21.08771296,191.04,190.92,1.6364]
[1736532309947,21.08771296,191.01,190.92,1.6364]
[1736532310147,21.08771296,191.01,190.93,5.32711714]
[1736532310543,21.08771296,191.04,190.93,5.32711714]
[1736532310744,85.8,191.06,190.91,1.591]
[1736532311254,5.66,191.09,190.92,21.08771296]
[1736532311448,21.08771296,191.07,190.92,27.09071545]
[1736532311649,21.08771296,191.07,190.95,2.6184]
[1736532311867,21.08771296,191.07,190.96,5.32568246]
[1736532312559,21.08771296,191.07,190.99,2.618]
[1736532312757,21.08771296,191.07,190.97,5.32568246]
[1736532313154,21.08771296,191.07,190.96,2.6184]
[1736532313652,15.85171296,191.07,190.96,2.6184]
[1736532314150,15.85171296,191.07,190.97,5.32571342]
[1736532314367,21.08771296,191.0,190.97,5.32571342]
[1736532314848,21.08771296,191.0,190.91,1.591]
[1736532315474,15.84471296,191.0,190.92,5.32914425]
[1736532316058,15.84471296,191.0,190.91,4.21]
[1736532316262,15.84471296,191.0,190.91,1.591]
[1736532316556,15.84471296,191.0,190.92,2.6189]
[1736532316557,10.60171296,191.0,190.92,2.6189]
[1736532316750,21.08771296,191.1,190.91,1.591]
[1736532317051,26.74771296,191.09,190.92,21.08771296]
[1736532317256,5.66,191.08,190.92,21.08771296]
[1736532317555,5.66,191.08,190.99,2.618]
[1736532317749,26.74771296,191.09,190.92,21.08771296]
[1736532318052,26.74771296,191.09,191.0,2.6178]
[1736532318445,21.08771296,191.09,190.92,21.08771296]
[1736532318653,5.66,191.11,191.02,2.6176]
[1736532318890,21.08771296,191.12,190.95,21.08771296]
[1736532319056,85.8,191.19,190.98,21.08771296]
[1736532319057,21.08771296,191.15,190.98,21.08771296]
[1736532319254,21.08771296,191.15,191.06,2.6169]
[1736532319552,21.08771296,191.15,190.99,3.2245]
[1736532320153,21.08771296,191.15,191.0,5.33129346]
[1736532320557,21.08771296,191.18,191.01,27.94450642]
[1736532321160,85.8,191.19,191.04,21.08771296]
[1736532321359,26.74771296,191.21,191.04,21.08771296]
[1736532321549,21.08771296,191.18,191.04,21.08771296]
[1736532321950,21.51171296,191.21,191.04,21.08771296]
[1736532322554,21.51171296,191.21,191.05,5.32045754]
[1736532322755,21.51171296,191.21,191.05,11.06722925]
[1736532323260,21.51171296,191.21,191.06,5.32045754]
[1736532323856,21.51171296,191.21,191.07,5.32045754]
[1736532324058,21.51171296,191.21,191.08,1.5172]
[1736532324258,21.51171296,191.21,191.09,2.6166]
[1736532324259,21.08771296,191.18,191.09,2.6166]
[1736532324563,21.08771296,191.18,191.08,6.83765754]
[1736532324867,21.08771296,191.18,191.1,2.6165]
[1736532325064,21.51171296,191.21,191.09,1.6445]
[1736532325261,21.08771296,191.21,191.09,6.96495754]
[1736532325461,21.08771296,191.18,191.09,6.96495754]
[1736532325662,21.08771296,191.15,191.09,5.32045754]
[1736532325860,21.08771296,191.15,191.02,3.3045]
[1736532326053,21.08771296,191.15,191.04,2.6173]
[1736532326264,21.08771296,191.15,191.03,5.32225818]
[1736532326768,21.08771296,191.15,191.04,5.32225818]
[1736532326967,21.08771296,191.15,191.05,5.32225818]
[1736532327270,21.08771296,191.12,191.05,5.32225818]
[1736532327470,21.08771296,191.09,191.05,5.32225818]
[1736532327777,21.08771296,191.09,190.97,6.82308539]
[1736532327966,21.08771296,191.06,190.98,5.32445482]
[1736532328666,21.08771296,191.1,190.99,5.32445482]
[1736532328878,21.08771296,191.13,190.99,5.32445482]
[1736532329170,21.08771296,191.13,191.03,2.6174]
[1736532329377,21.08771296,191.13,190.99,5.32445482]